Workbook

Sheet Motorisation
B1: YAK 54 Seagull Model | D1: La plupart des formules de cet onglet sont tirées du fichier de Franck A. (CalculMotorisationSimplifiée.xsl), formules et calculs vérifiés tous ok le 10/01/2022
B3: moteur | E3: accu | I3: Vérifications | N3: Boucher | O3: =O4/(12^5*1000^3) -> 4.822530864e-15
B4: Type de moteur | C4: 4 | E4: Type d'accu | F4: 3.7 | I4: KV du moteur chosi | K4: 430 | N4: K = | O4: 1.2
B5: Rendement | C5: 85 | E5: Nombre d'éléments | F5: 6 | I5: Masse du moteur choisi (g) | K5: 378
B6: Puissance massique (W/kg) | C6: 300 | E6: Etat de l'accu | F6: 1/3 du vol | I6: Intensité max du moteur choisi (A) | K6: 70 | O6: km/h | P6: m/s
B7: Puissance moteur min (W) | C7: =ROUND((Puissance_Massique_Moteur*(Masse_totale_modele/1000)),0) -> 1200 | E7: Tension moy calculée (V) | F7: =F4*F5 -> 22.2 | I7: Puissance max du moteur choisi (W) | K7: 1750 | N7: Vitesse moy palier | O7: =(SQRT((2*9.81)/1.293)*SQRT((Charge_Alaire/10)/Cz_AileChoisi))*3.6 -> 69.29881157 | P7: =O7/3.6 -> 19.24966988
B8: Puissance moteur sécu (W) | C8: =ROUND(((((Puissance_Massique_Moteur*(Masse_totale_modele/1000))*1.02)*100)/Rendement_Moteur),0) -> 1440 | E8: Ajustement de la tension (V) | F8: 22.2 | I8: Capacité de l'accu choisi (mAh) | K8: 4000 | N8: Coefficient de portance max | O8: 0.8
B9: Masse moteur min (g) | C9: =ROUND(Puissance_moteur_secu/Type_Moteur,0) -> 360 | E9: Taux de décharge max (C) | F9: 40 | I9: Intensité de décharge constante théorique (A) | K9: =Capacite_Accu_Choisie*Taux_Decharge_Accu/1000 -> 160 | L9: A | N9: Vitesse décrochage | O9: =4.56*SQRT(Charge_Alaire/Czprofildecrochage) -> 43.63686313 | P9: =O9/3.6 -> 12.12135087
B10: Intensité min moteur (A) | C10: =ROUNDUP((Intensite_moyenne*1.05),0) -> 69 | E10: Intensité moyenne (A) | F10: =ROUND(Puissance_moteur_secu/Tension_Moyenne,1) -> 64.9 | I10: Intensité de décharge constante conseillée (A) | K10: =I_Const_Theorique*(2/3) -> 106.6666667 | L10: A | N10: Vitesse air brassé | O10: =Vitesse_Moyenne_Palier/0.8 -> 86.62351446 | P10: =O10/3.6 -> 24.06208735
B11: Puissance moteur restituée | C11: =ROUND(Intensite_moyenne*Tension_Moyenne*0.98*(Rendement_Moteur/100),0) -> 1200 | E11: Intensité max (A) | F11: =ROUND(Intensite_moyenne*1.5,1) -> 97.4 | I11: Masse calculée de l'accu nu (g) | K11: 631.5789474 | L11: g
B12: Kv | C12: 500 | E12: Capacité min (mAh) | F12: =ROUNDUP((intensite_max/Taux_Decharge_Accu)*1000,0) -> 2435 | I12: Masse réelle de l'accu choisi (g) | K12: 605
B13: Régime théorique à vide | C13: =Tension_Moyenne*KV -> 11100 | E13: Masse accu mini nu (g) | F13: 405.8333333 | J13: Hélice inférieure | K13: hélice choisie | L13: hélice supérieure | N13: Gestion des Gaz (%) | O13: 100
B14: Régime standard en charge | C14: =C13*0.83 -> 9213 | N14: Tension moyenne (V) | O14: =Tension_Moyenne -> 22.2
E15: ESC | I15: Diamètre (pouces) | J15: =ROUNDDOWN(F19,0) -> 15 | K15: 15 | L15: =ROUNDUP(F19,0) -> 16 | N15: Intensité correspondante (A) | O15: =(O13/100)*K23 -> 52.5328098
B16: Modèle | E16: Intensité constante minimum | F16: =intensite_mini_moteur*1.2 -> 82.8 | I16: Pas (pouces) | J16: =ROUNDDOWN(F20,0) -> 6 | K16: 8 | L16: =ROUNDUP(F20,0) -> 7 | N16: Puissance consommée (W) | O16: =O14*O15 -> 1166.228378
B17: Surface alaire (dm²) | C17: 54.6 | I17: Rapport Pas/Diamètre | J17: =J16/J15 -> 0.4 | K17: =K16/K15 -> 0.5333333333 | L17: =L16/L15 -> 0.4375 | N17: Traction statique (g) | O17: =(28.35*(Pas_Helice_Libre)*(Diametre_Helice_Libre)^3*O19^2*10^-10)*Coeff_Traction -> 3459.779082
B18: Masse totale du modèle (g) | C18: 4000 | E18: Hélice théorique | I18: Régime à vide | J18: =Tension_Moyenne*K4 -> 9546 | K18: =Tension_Moyenne*Kv_Choisi -> 9546 | L18: =Tension_Moyenne*K4 -> 9546 | N18: Puissance à l'arbre | O18: =O15*$O$14*0.98*(Rendement_Moteur/100) -> 971.4682386
B19: Charge Alaire (g/dm²) | C19: =Masse_totale_modele/Surface_alaire -> 73.26007326 | E19: Diamètre (pouces) | F19: =(C11/(O3*F20*C14^3))^(1/4) -> 15.07000213 | I19: Régime standard | J19: =J18*0.83 -> 7923.18 | K19: =K18*0.83 -> 7923.18 | L19: =L18*0.83 -> 7923.18 | N19: Régime (T/mn) | O19: =(O18/(Diametre_Helice_Libre^4*O3*Pas_Helice_Libre))^(1/3) -> 7923.18
B20: Cz aile choisi | C20: 0.3 | E20: Pas (pouces) | F20: =Vitesse_Air_Brasse/((2.54*60/100/1000)*Regime_Standard) -> 6.169497061 | I20: Puissance à l'arbre (W) | J20: =Coefficient_K*(J16/12)*((J15/12)^4)*((J19/1000)^3) -> 728.6011789 | K20: =Coefficient_K*(Pas_Helice_Libre/12)*((Diametre_Helice_Libre/12)^4)*((K19/1000)^3) -> 971.4682386 | L20: =Coefficient_K*(L16/12)*((L15/12)^4)*((K19/1000)^3) -> 1100.402463 | N20: Vitesse air brassé | O20: =0.001524*$O$19*Pas_Helice_Libre -> 96.59941056 | P20: =O20/3.6 -> 26.8331696
E21: Rapport Pas/Diamètre | F21: =F20/F19 -> 0.4093892626 | I21: Traction statique (g) | J21: =(28.35*(J16)*(J15)^3*J19^2*10^-10)*Coeff_Traction -> 2594.834312 | K21: =(28.35*(Pas_Helice_Libre)*(Diametre_Helice_Libre)^3*K19^2*10^-10)*Coeff_Traction -> 3459.779082 | L21: =(28.35*(L16)*(L15)^3*L19^2*10^-10)*Coeff_Traction -> 3674.029106 | N21: Vitesse de vol (km/h)(m/s) | O21: =O20*0.8 -> 77.27952845 | P21: =O21/3.6 -> 21.46653568
E22: Coeff de traction | F22: 0.72 | I22: Vitesse air brassé (km/h) | J22: =0.001524*$J$19*J16 -> 72.44955792 | K22: =0.001524*$K$19*Pas_Helice_Libre -> 96.59941056 | L22: =0.001524*$L$19*L16 -> 84.52448424
E23: Régime à vide | F23: =Tension_Moyenne*KV -> 11100 | I23: Intensité nécessaire (A) | J23: =J20/Tension_Moyenne/0.98/Rendement_Moteur*100 -> 39.39960735 | K23: =K20/Tension_Moyenne/0.98/Rendement_Moteur*100 -> 52.5328098 | L23: =L20/Tension_Moyenne/0.98/Rendement_Moteur*100 -> 59.50501621
E24: Régime standard | F24: =F23*0.83 -> 9213 | I24: Puissance consommée (W) | J24: =J23*Tension_Moyenne -> 874.6712832 | K24: =K23*Tension_Moyenne -> 1166.228378 | L24: =L23*Tension_Moyenne -> 1321.01136
E25: Puissance à l'arbre (W) | F25: =Coefficient_K*(F20/12)*((F19/12)^4)*((F24/1000)^3) -> 1200 | I25: Tension moyenne (V) | J25: =J24/J23 -> 22.2 | K25: =K24/K23 -> 22.2 | L25: =L24/L23 -> 22.2
E26: Traction statique (g) | F26: =(28.35*(F20)*(F19)^3*F24^2*10^-10)*Coeff_Traction -> 3658.283893 | I26: Puissance massique (W/kg) | J26: =J20/($C$18/1000) -> 182.1502947 | K26: =K20/($C$18/1000) -> 242.8670596 | L26: =L20/($C$18/1000) -> 275.1006157
E27: Vitesse air brassé (km/h) | F27: =0.001524*F24*F20 -> 86.62351446 | I27: Vitesse de vol (km/h) | J27: =J22*0.8 -> 57.95964634 | K27: =K22*0.8 -> 77.27952845 | L27: =L22*0.8 -> 67.61958739
E28: Intensité nécessaire (A) | F28: =F25/Tension_Moyenne/0.98/Rendement_Moteur*100 -> 64.89082119 | I28: Autonomie plein gaz (mn) | J28: =Capacite_Accu_Choisie/1000/J23*60*0.95 -> 5.7868597 | K28: =Capacite_Accu_Choisie/1000/K23*60*0.95 -> 4.340144775 | L28: =Capacite_Accu_Choisie/1000/L23*60*0.95 -> 3.831609745
I30: Turnigy Aerodrive SK3 - 5055-430KV
I31: Kv annoncé | J31: 430 | K31: mesuré
I32: 5S à 8S
I33: 70A | K33: axe 6mm
I34: 1750W | K34: 378g

Sheet masses
B2: Colonne1 | C2: Colonne2
B3: capot | C3: 178
B4: accastillage | C4: 260
B5: train | C5: 213
B6: caches roues | C6: 130
B7: fuselage et pilote | C7: 940
B8: dérive | C8: 57
B9: profondeur | C9: 82
B10: aile G | C10: 328
B11: aile D | C11: 346
B12: clé aile | C12: 130
B14: accus 6S 4000 | C14: 605
B15: moteur | C15: 380
B16: servos (6) | C16: 240
B17: récepteur | C17: 20
B18: esc | C18: 60
B20: total: | C20: =SUM(C3:C19) -> 3969
